[Event "Titled Tuesday Blitz August 16 Late 2022"]
[White "Bringas Gomez, Artai"]
[Black "Solon, Nathan"]
[WhiteFideId "24534064"]
[BlackFideId "2017229"]
[WhiteElo "2039"]
[BlackElo "2306"]
[Result "1/2-1/2"]
[Round "05"]
[TimeControl "180+1"]
[Date "2022.08.18"]
[WhiteClock "0:00:00"]
[BlackClock "0:00:00"]

1. e4 {[%clk 0:00:00]}  c6 {[%clk 0:00:00]} 2. Nf3 {[%clk 0:00:00]}  d5 {[%clk 0:00:00]} 3. d3 {[%clk 0:00:00]}  dxe4 {[%clk 0:00:00]} 4. dxe4 {[%clk 0:00:00]}  Qxd1+ {[%clk 0:00:00]} 5. Kxd1 {[%clk 0:00:00]}  Nf6 {[%clk 0:00:00]} 6. Nbd2 {[%clk 0:00:00]}  g6 {[%clk 0:00:00]} 7. a4 {[%clk 0:00:00]}  Bh6 {[%clk 0:00:00]} 8. Bd3 {[%clk 0:00:00]}  O-O {[%clk 0:00:00]} 9. Ne1 {[%clk 0:00:00]}  Nbd7 {[%clk 0:00:00]} 10. f3 {[%clk 0:00:00]}  Nc5 {[%clk 0:00:00]} 11. Bc4 {[%clk 0:00:00]}  Rd8 {[%clk 0:00:00]} 12. Nd3 {[%clk 0:00:00]}  Nxd3 {[%clk 0:00:00]} 13. Bxd3 {[%clk 0:00:00]}  Be6 {[%clk 0:00:00]} 14. Ke2 {[%clk 0:00:00]}  Nd7 {[%clk 0:00:00]} 15. c3 {[%clk 0:00:00]}  Nc5 {[%clk 0:00:00]} 16. Bc2 {[%clk 0:00:00]}  Bxd2 {[%clk 0:00:00]} 17. Bxd2 {[%clk 0:00:00]}  Bc4+ {[%clk 0:00:00]} 18. Ke3 {[%clk 0:00:00]}  Bb3 {[%clk 0:00:00]} 19. Rhc1 {[%clk 0:00:00]}  Bxc2 {[%clk 0:00:00]} 20. Rxc2 {[%clk 0:00:00]}  Rd3+ {[%clk 0:00:00]} 21. Ke2 {[%clk 0:00:00]}  Rad8 {[%clk 0:00:00]} 22. Be3 {[%clk 0:00:00]}  Nb3 {[%clk 0:00:00]} 23. Ra3 {[%clk 0:00:00]}  Na5 {[%clk 0:00:00]} 24. Bd4 {[%clk 0:00:00]}  R3xd4 {[%clk 0:00:00]} 25. cxd4 {[%clk 0:00:00]}  Rxd4 {[%clk 0:00:00]} 26. Rd3 {[%clk 0:00:00]}  Rxa4 {[%clk 0:00:00]} 27. Ra3 {[%clk 0:00:00]}  Rxa3 {[%clk 0:00:00]} 28. bxa3 {[%clk 0:00:00]}  Kf8 {[%clk 0:00:00]} 29. Kd3 {[%clk 0:00:00]}  b6 {[%clk 0:00:00]} 30. h4 {[%clk 0:00:00]}  e5 {[%clk 0:00:00]} 31. g3 {[%clk 0:00:00]}  Ke7 {[%clk 0:00:00]} 32. f4 {[%clk 0:00:00]}  Ke6 {[%clk 0:00:00]} 33. h5 {[%clk 0:00:00]}  Nb3 {[%clk 0:00:00]} 34. Rh2 {[%clk 0:00:00]}  Nc5+ {[%clk 0:00:00]} 35. Ke3 {[%clk 0:00:00]}  a5 {[%clk 0:00:00]} 36. Rb2 {[%clk 0:00:00]}  b5 {[%clk 0:00:00]} 37. Rc2 {[%clk 0:00:00]}  exf4+ {[%clk 0:00:00]} 38. gxf4 {[%clk 0:00:00]}  Kd6 {[%clk 0:00:00]} 39. Rd2+ {[%clk 0:00:00]}  Kc7 {[%clk 0:00:00]} 40. Rh2 {[%clk 0:00:00]}  Kd6 {[%clk 0:00:00]} 41. hxg6 {[%clk 0:00:00]}  hxg6 {[%clk 0:00:00]} 42. Rh7 {[%clk 0:00:00]}  Ke6 {[%clk 0:00:00]} 43. Rh8 {[%clk 0:00:00]}  b4 {[%clk 0:00:00]} 44. axb4 {[%clk 0:00:00]}  axb4 {[%clk 0:00:00]} 45. Rb8 {[%clk 0:00:00]}  b3 {[%clk 0:00:00]} 46. Kd4 {[%clk 0:00:00]}  Kd6 {[%clk 0:00:00]} 47. e5+ {[%clk 0:00:00]}  Kc7 {[%clk 0:00:00]} 48. Rb4 {[%clk 0:00:00]}  Ne6+ {[%clk 0:00:00]} 49. Ke4 {[%clk 0:00:00]}  c5 {[%clk 0:00:00]} 50. Rxb3 {[%clk 0:00:00]}  Kc6 {[%clk 0:00:00]} 51. Rb1 {[%clk 0:00:00]}  c4 {[%clk 0:00:00]} 52. Rc1 {[%clk 0:00:00]}  Kc5 {[%clk 0:00:00]} 53. f5 {[%clk 0:00:00]}  gxf5+ {[%clk 0:00:00]} 54. Kxf5 {[%clk 0:00:00]}  Kd4 {[%clk 0:00:00]} 55. Rd1+ {[%clk 0:00:00]}  Ke3 {[%clk 0:00:00]} 56. Kf6 {[%clk 0:00:00]}  c3 {[%clk 0:00:00]} 57. Kxf7 {[%clk 0:00:00]}  Nc5 {[%clk 0:00:00]} 58. Rd5 {[%clk 0:00:00]}  Nd3 {[%clk 0:00:00]} 59. e6 {[%clk 0:00:00]}  c2 {[%clk 0:00:00]} 60. e7 {[%clk 0:00:00]}  c1=Q {[%clk 0:00:00]} 61. e8=Q+ {[%clk 0:00:00]}  Kd2 {[%clk 0:00:00]} 62. Qd7 {[%clk 0:00:00]}  Qf1+ {[%clk 0:00:00]} 63. Ke8 {[%clk 0:00:00]}  Qf3 {[%clk 0:00:00]} 64. Kd8 {[%clk 0:00:00]}  Ke2 {[%clk 0:00:00]} 65. Qe6+ {[%clk 0:00:00]}  Kd2 {[%clk 0:00:00]} 66. Qd6 {[%clk 0:00:00]}  Ke2 {[%clk 0:00:00]} 67. Qe6+ {[%clk 0:00:00]}  Kd2 {[%clk 0:00:00]} 68. Qh6+ {[%clk 0:00:00]}  Ke2 {[%clk 0:00:00]} 69. Qh2+ {[%clk 0:00:00]}  Ke3 {[%clk 0:00:00]} 70. Qg1+ {[%clk 0:00:00]}  Ke2 {[%clk 0:00:00]} 71. Qh2+ {[%clk 0:00:00]}  Ke3 {[%clk 0:00:00]} 72. Qh6+ {[%clk 0:00:00]}  Ke2 {[%clk 0:00:00]} 73. Qe6+ {[%clk 0:00:00]} 1/2-1/2


[Site "https://www.chess.com"]

[Event "Titled Tuesday Blitz August 16 Late 2022"]
[White "Chernomordik, Pavel"]
[Black "Rostovtsev, Dmitry"]
[WhiteFideId "2804530"]
[BlackFideId "34278320"]
[WhiteElo "2217"]
[BlackElo "2295"]
[Result "1-0"]
[Round "05"]
[TimeControl "180+1"]
[Date "2022.08.16"]
[WhiteClock "0:01:10"]
[BlackClock "0:00:30"]

1. e4 {[%clk 0:03:00]}  c5 {[%clk 0:02:58]} 2. Nc3 {[%clk 0:02:59]}  Nc6 {[%clk 0:02:58]} 3. Bb5 {[%clk 0:02:59]}  Nd4 {[%clk 0:02:58]} 4. Bc4 {[%clk 0:02:58]}  g6 {[%clk 0:02:58]} 5. Nge2 {[%clk 0:02:57]}  Bg7 {[%clk 0:02:58]} 6. Nxd4 {[%clk 0:02:56]}  cxd4 {[%clk 0:02:59]} 7. Qf3 {[%clk 0:02:56]}  Nf6 {[%clk 0:02:55]} 8. e5 {[%clk 0:02:51]}  dxc3 {[%clk 0:02:54]} 9. dxc3 {[%clk 0:02:42]}  O-O {[%clk 0:02:19]} 10. exf6 {[%clk 0:02:41]}  Bxf6 {[%clk 0:02:19]} 11. Bh6 {[%clk 0:02:39]}  Bg7 {[%clk 0:02:19]} 12. Bxg7 {[%clk 0:02:37]}  Kxg7 {[%clk 0:02:20]} 13. O-O-O {[%clk 0:02:36]}  d6 {[%clk 0:02:20]} 14. Rhe1 {[%clk 0:02:28]}  Be6 {[%clk 0:02:16]} 15. Bxe6 {[%clk 0:02:15]}  fxe6 {[%clk 0:02:17]} 16. Qxb7 {[%clk 0:02:06]}  Rb8 {[%clk 0:02:13]} 17. Qe4 {[%clk 0:02:01]}  e5 {[%clk 0:02:10]} 18. f3 {[%clk 0:02:00]}  Qb6 {[%clk 0:02:05]} 19. b3 {[%clk 0:01:58]}  Rf4 {[%clk 0:01:53]} 20. Qe3 {[%clk 0:01:57]}  Qa6 {[%clk 0:01:51]} 21. Kb2 {[%clk 0:01:55]}  Rc8 {[%clk 0:01:34]} 22. Rd5 {[%clk 0:01:47]}  Qb7 {[%clk 0:01:33]} 23. Red1 {[%clk 0:01:44]}  Rfc4 {[%clk 0:01:32]} 24. R5d3 {[%clk 0:01:40]}  a5 {[%clk 0:01:28]} 25. Ka1 {[%clk 0:01:35]}  R4c7 {[%clk 0:01:23]} 26. f4 {[%clk 0:01:34]}  e4 {[%clk 0:01:20]} 27. Qd4+ {[%clk 0:01:31]}  e5 {[%clk 0:00:41]} 28. fxe5 {[%clk 0:01:29]}  exd3 {[%clk 0:00:37]} 29. exd6+ {[%clk 0:01:29]}  Kg8 {[%clk 0:00:37]} 30. dxc7 {[%clk 0:01:25]}  dxc2 {[%clk 0:00:37]} 31. Qd8+ {[%clk 0:01:18]}  Kf7 {[%clk 0:00:31]} 32. Rf1+ {[%clk 0:01:14]}  Ke6 {[%clk 0:00:30]} 33. Rf6+ {[%clk 0:01:12]}  Ke5 {[%clk 0:00:30]} 34. Qd6+ {[%clk 0:01:11]}  Ke4 {[%clk 0:00:30]} 35. Qd4# {[%clk 0:01:10]} 1-0


[Site "https://www.chess.com"]

[Event "Titled Tuesday Blitz August 16 Late 2022"]
[White "Dubov, Daniil"]
[Black "Bogaudinov, Rushan"]
[WhiteFideId "24126055"]
[BlackFideId "4129288"]
[WhiteElo "2791"]
[BlackElo "2040"]
[Result "1-0"]
[Round "05"]
[TimeControl "180+1"]
[Date "2022.08.18"]
[WhiteClock "0:00:00"]
[BlackClock "0:00:00"]

1. e4 {[%clk 0:00:00]}  c5 {[%clk 0:00:00]} 2. Nc3 {[%clk 0:00:00]}  d6 {[%clk 0:00:00]} 3. g3 {[%clk 0:00:00]}  Nc6 {[%clk 0:00:00]} 4. Bg2 {[%clk 0:00:00]}  g6 {[%clk 0:00:00]} 5. Nge2 {[%clk 0:00:00]}  Bg7 {[%clk 0:00:00]} 6. d3 {[%clk 0:00:00]}  Nf6 {[%clk 0:00:00]} 7. Bg5 {[%clk 0:00:00]}  O-O {[%clk 0:00:00]} 8. Qd2 {[%clk 0:00:00]}  Nd4 {[%clk 0:00:00]} 9. Nxd4 {[%clk 0:00:00]}  cxd4 {[%clk 0:00:00]} 10. Ne2 {[%clk 0:00:00]}  Qb6 {[%clk 0:00:00]} 11. Bh6 {[%clk 0:00:00]}  e5 {[%clk 0:00:00]} 12. Bxg7 {[%clk 0:00:00]}  Kxg7 {[%clk 0:00:00]} 13. c3 {[%clk 0:00:00]}  dxc3 {[%clk 0:00:00]} 14. Nxc3 {[%clk 0:00:00]}  Be6 {[%clk 0:00:00]} 15. O-O {[%clk 0:00:00]}  Rad8 {[%clk 0:00:00]} 16. Rfe1 {[%clk 0:00:00]}  Rfe8 {[%clk 0:00:00]} 17. Rad1 {[%clk 0:00:00]}  d5 {[%clk 0:00:00]} 18. exd5 {[%clk 0:00:00]}  Nxd5 {[%clk 0:00:00]} 19. Rxe5 {[%clk 0:00:00]}  Nxc3 {[%clk 0:00:00]} 20. bxc3 {[%clk 0:00:00]}  Qa6 {[%clk 0:00:00]} 21. d4 {[%clk 0:00:00]}  f6 {[%clk 0:00:00]} 22. Re3 {[%clk 0:00:00]}  Qxa2 {[%clk 0:00:00]} 23. Qxa2 {[%clk 0:00:00]}  Bxa2 {[%clk 0:00:00]} 24. Ra1 {[%clk 0:00:00]}  Bd5 {[%clk 0:00:00]} 25. Rxe8 {[%clk 0:00:00]} 1-0


[Site "https://www.chess.com"]

[Event "Titled Tuesday Blitz August 16 Late 2022"]
[White "Fier, Alexandr"]
[Black "Adewumi, Tanitoluwa"]
[WhiteFideId "2107139"]
[BlackFideId "30966396"]
[WhiteElo "2598"]
[BlackElo "2574"]
[Result "1-0"]
[Round "05"]
[TimeControl "180+1"]
[Date "2022.08.16"]
[WhiteClock "0:02:54"]
[BlackClock "0:01:33"]

1. d4 {[%clk 0:03:00]}  Nf6 {[%clk 0:02:59]} 2. Bg5 {[%clk 0:03:00]}  e6 {[%clk 0:02:59]} 3. e4 {[%clk 0:03:00]}  h6 {[%clk 0:02:58]} 4. Bxf6 {[%clk 0:03:00]}  Qxf6 {[%clk 0:02:59]} 5. c3 {[%clk 0:03:01]}  d6 {[%clk 0:02:41]} 6. Bd3 {[%clk 0:03:01]}  g6 {[%clk 0:02:41]} 7. Ne2 {[%clk 0:03:01]}  Bg7 {[%clk 0:02:40]} 8. O-O {[%clk 0:03:02]}  O-O {[%clk 0:02:36]} 9. f4 {[%clk 0:03:03]}  Qe7 {[%clk 0:02:36]} 10. f5 {[%clk 0:03:03]}  exf5 {[%clk 0:02:36]} 11. exf5 {[%clk 0:03:03]}  Qg5 {[%clk 0:02:05]} 12. Kh1 {[%clk 0:02:56]}  Nc6 {[%clk 0:01:52]} 13. Nd2 {[%clk 0:02:56]}  Ne7 {[%clk 0:01:43]} 14. f6 {[%clk 0:02:55]}  Bxf6 {[%clk 0:01:33]} 15. Ne4 {[%clk 0:02:54]} 1-0


[Site "https://www.chess.com"]

[Event "Titled Tuesday Blitz August 16 Late 2022"]
[White "Golubev, Mikhail"]
[Black "Harshavardhan G B"]
[WhiteFideId "14100983"]
[BlackFideId "25059009"]
[WhiteElo "2374"]
[BlackElo "1890"]
[Result "0-1"]
[Round "05"]
[TimeControl "180+1"]
[Date "2022.08.18"]
[WhiteClock "0:00:00"]
[BlackClock "0:00:00"]

1. e4 {[%clk 0:00:00]}  c5 {[%clk 0:00:00]} 2. Nf3 {[%clk 0:00:00]}  d6 {[%clk 0:00:00]} 3. d4 {[%clk 0:00:00]}  cxd4 {[%clk 0:00:00]} 4. Nxd4 {[%clk 0:00:00]}  Nf6 {[%clk 0:00:00]} 5. Nc3 {[%clk 0:00:00]}  Nc6 {[%clk 0:00:00]} 6. Bc4 {[%clk 0:00:00]}  e6 {[%clk 0:00:00]} 7. Be3 {[%clk 0:00:00]}  a6 {[%clk 0:00:00]} 8. Bb3 {[%clk 0:00:00]}  Qc7 {[%clk 0:00:00]} 9. Qe2 {[%clk 0:00:00]}  Be7 {[%clk 0:00:00]} 10. O-O-O {[%clk 0:00:00]}  O-O {[%clk 0:00:00]} 11. Rhg1 {[%clk 0:00:00]}  b5 {[%clk 0:00:00]} 12. g4 {[%clk 0:00:00]}  b4 {[%clk 0:00:00]} 13. Nd5 {[%clk 0:00:00]}  exd5 {[%clk 0:00:00]} 14. Nxc6 {[%clk 0:00:00]}  Qxc6 {[%clk 0:00:00]} 15. g5 {[%clk 0:00:00]}  Qb5 {[%clk 0:00:00]} 16. Qxb5 {[%clk 0:00:00]}  axb5 {[%clk 0:00:00]} 17. gxf6 {[%clk 0:00:00]}  Bxf6 {[%clk 0:00:00]} 18. Bxd5 {[%clk 0:00:00]}  Ra6 {[%clk 0:00:00]} 19. Bd4 {[%clk 0:00:00]}  Bxd4 {[%clk 0:00:00]} 20. Rxd4 {[%clk 0:00:00]}  Be6 {[%clk 0:00:00]} 21. Bxe6 {[%clk 0:00:00]}  fxe6 {[%clk 0:00:00]} 22. Rxb4 {[%clk 0:00:00]}  Rxa2 {[%clk 0:00:00]} 23. Rg2 {[%clk 0:00:00]}  Ra5 {[%clk 0:00:00]} 24. Kd2 {[%clk 0:00:00]}  Rf3 {[%clk 0:00:00]} 25. Ke2 {[%clk 0:00:00]}  Rf4 {[%clk 0:00:00]} 26. Ke3 {[%clk 0:00:00]}  e5 {[%clk 0:00:00]} 27. Rg1 {[%clk 0:00:00]}  d5 {[%clk 0:00:00]} 28. c3 {[%clk 0:00:00]}  Ra2 {[%clk 0:00:00]} 29. Rxb5 {[%clk 0:00:00]}  Rxe4+ {[%clk 0:00:00]} 30. Kd3 {[%clk 0:00:00]}  Rf4 {[%clk 0:00:00]} 31. Rxd5 {[%clk 0:00:00]}  Rxb2 {[%clk 0:00:00]} 32. Rd8+ {[%clk 0:00:00]}  Rf8 {[%clk 0:00:00]} 33. Rxf8+ {[%clk 0:00:00]}  Kxf8 {[%clk 0:00:00]} 34. Rg2 {[%clk 0:00:00]}  Kf7 {[%clk 0:00:00]} 35. c4 {[%clk 0:00:00]}  g6 {[%clk 0:00:00]} 36. Kc3 {[%clk 0:00:00]}  Ra2 {[%clk 0:00:00]} 37. c5 {[%clk 0:00:00]}  Ke6 {[%clk 0:00:00]} 38. Kc4 {[%clk 0:00:00]}  Rc2+ {[%clk 0:00:00]} 39. Kb4 {[%clk 0:00:00]}  Kd5 {[%clk 0:00:00]} 40. Rg1 {[%clk 0:00:00]}  Rc4+ {[%clk 0:00:00]} 41. Kb3 {[%clk 0:00:00]}  Rxc5 {[%clk 0:00:00]} 42. Rd1+ {[%clk 0:00:00]}  Ke4 {[%clk 0:00:00]} 43. Rd7 {[%clk 0:00:00]}  h5 {[%clk 0:00:00]} 44. Rd6 {[%clk 0:00:00]}  Kf5 {[%clk 0:00:00]} 45. Rd8 {[%clk 0:00:00]}  g5 {[%clk 0:00:00]} 46. Rf8+ {[%clk 0:00:00]}  Kg4 {[%clk 0:00:00]} 47. f3+ {[%clk 0:00:00]}  Kh3 {[%clk 0:00:00]} 48. Rg8 {[%clk 0:00:00]}  e4 {[%clk 0:00:00]} 49. fxe4 {[%clk 0:00:00]}  Kxh2 {[%clk 0:00:00]} 50. Kb4 {[%clk 0:00:00]}  Re5 {[%clk 0:00:00]} 51. Kc3 {[%clk 0:00:00]}  g4 {[%clk 0:00:00]} 52. Kd4 {[%clk 0:00:00]}  Ra5 {[%clk 0:00:00]} 53. e5 {[%clk 0:00:00]}  g3 {[%clk 0:00:00]} 54. e6 {[%clk 0:00:00]}  Ra1 {[%clk 0:00:00]} 55. e7 {[%clk 0:00:00]}  Re1 {[%clk 0:00:00]} 56. e8=Q {[%clk 0:00:00]}  Rxe8 {[%clk 0:00:00]} 57. Rxe8 {[%clk 0:00:00]}  g2 {[%clk 0:00:00]} 58. Re2 {[%clk 0:00:00]}  Kh1 {[%clk 0:00:00]} 0-1


[Site "https://www.chess.com"]

[Event "Titled Tuesday Blitz August 16 Late 2022"]
[White "Goncalves, Davi Sulzbacher"]
[Black "Zamorano, Jorge"]
[WhiteFideId "2154510"]
[BlackFideId "173770"]
[WhiteElo "2107"]
[BlackElo "2331"]
[Result "0-1"]
[Round "05"]
[TimeControl "180+1"]
[Date "2022.08.18"]
[WhiteClock "0:00:00"]
[BlackClock "0:00:00"]

1. d4 {[%clk 0:00:00]}  Nf6 {[%clk 0:00:00]} 2. c4 {[%clk 0:00:00]}  e6 {[%clk 0:00:00]} 3. Nf3 {[%clk 0:00:00]}  b6 {[%clk 0:00:00]} 4. g3 {[%clk 0:00:00]}  Ba6 {[%clk 0:00:00]} 5. Qc2 {[%clk 0:00:00]}  Bb4+ {[%clk 0:00:00]} 6. Bd2 {[%clk 0:00:00]}  Be7 {[%clk 0:00:00]} 7. Bg2 {[%clk 0:00:00]}  O-O {[%clk 0:00:00]} 8. O-O {[%clk 0:00:00]}  c6 {[%clk 0:00:00]} 9. Bf4 {[%clk 0:00:00]}  d5 {[%clk 0:00:00]} 10. Nbd2 {[%clk 0:00:00]}  Nh5 {[%clk 0:00:00]} 11. Be3 {[%clk 0:00:00]}  Nd7 {[%clk 0:00:00]} 12. Qa4 {[%clk 0:00:00]}  Bxc4 {[%clk 0:00:00]} 13. Nxc4 {[%clk 0:00:00]}  b5 {[%clk 0:00:00]} 14. Qa6 {[%clk 0:00:00]}  bxc4 {[%clk 0:00:00]} 15. Qxc6 {[%clk 0:00:00]}  Nhf6 {[%clk 0:00:00]} 16. b3 {[%clk 0:00:00]}  Qb6 {[%clk 0:00:00]} 17. Ne5 {[%clk 0:00:00]}  Rac8 {[%clk 0:00:00]} 18. Qxb6 {[%clk 0:00:00]}  Nxb6 {[%clk 0:00:00]} 19. Rfc1 {[%clk 0:00:00]}  Ba3 {[%clk 0:00:00]} 20. Rc2 {[%clk 0:00:00]}  Rc7 {[%clk 0:00:00]} 21. bxc4 {[%clk 0:00:00]}  Nxc4 {[%clk 0:00:00]} 22. Nxc4 {[%clk 0:00:00]}  Rxc4 {[%clk 0:00:00]} 23. Rxc4 {[%clk 0:00:00]}  dxc4 {[%clk 0:00:00]} 24. Rb1 {[%clk 0:00:00]}  Rc8 {[%clk 0:00:00]} 25. Bc1 {[%clk 0:00:00]}  Bxc1 {[%clk 0:00:00]} 26. Rxc1 {[%clk 0:00:00]}  Kf8 {[%clk 0:00:00]} 27. e4 {[%clk 0:00:00]}  c3 {[%clk 0:00:00]} 28. Kf1 {[%clk 0:00:00]}  Rc4 {[%clk 0:00:00]} 29. Ke2 {[%clk 0:00:00]}  Rxd4 {[%clk 0:00:00]} 30. Rxc3 {[%clk 0:00:00]}  Ra4 {[%clk 0:00:00]} 31. a3 {[%clk 0:00:00]}  Nxe4 {[%clk 0:00:00]} 32. Rc8+ {[%clk 0:00:00]}  Ke7 {[%clk 0:00:00]} 33. Rc7+ {[%clk 0:00:00]}  Kf6 {[%clk 0:00:00]} 34. f4 {[%clk 0:00:00]}  Nd6 {[%clk 0:00:00]} 35. Rc3 {[%clk 0:00:00]}  Nb5 {[%clk 0:00:00]} 36. Rb3 {[%clk 0:00:00]}  Nd4+ {[%clk 0:00:00]} 0-1


[Site "https://www.chess.com"]

[Event "Titled Tuesday Blitz August 16 Late 2022"]
[White "Harshal, Shahi"]
[Black "Olenik Campa, Rudi"]
[WhiteFideId "5048257"]
[BlackFideId "14633264"]
[WhiteElo "2054"]
[BlackElo "2008"]
[Result "1/2-1/2"]
[Round "05"]
[TimeControl "180+1"]
[Date "2022.08.18"]
[WhiteClock "0:00:00"]
[BlackClock "0:00:00"]

1. d4 {[%clk 0:00:00]}  Nf6 {[%clk 0:00:00]} 2. c4 {[%clk 0:00:00]}  e6 {[%clk 0:00:00]} 3. Nc3 {[%clk 0:00:00]}  d5 {[%clk 0:00:00]} 4. cxd5 {[%clk 0:00:00]}  exd5 {[%clk 0:00:00]} 5. Bg5 {[%clk 0:00:00]}  Be7 {[%clk 0:00:00]} 6. e3 {[%clk 0:00:00]}  O-O {[%clk 0:00:00]} 7. Bd3 {[%clk 0:00:00]}  c6 {[%clk 0:00:00]} 8. Qc2 {[%clk 0:00:00]}  h6 {[%clk 0:00:00]} 9. Bh4 {[%clk 0:00:00]}  Re8 {[%clk 0:00:00]} 10. Nge2 {[%clk 0:00:00]}  a5 {[%clk 0:00:00]} 11. O-O {[%clk 0:00:00]}  Na6 {[%clk 0:00:00]} 12. a3 {[%clk 0:00:00]}  Nc7 {[%clk 0:00:00]} 13. Rad1 {[%clk 0:00:00]}  Ne6 {[%clk 0:00:00]} 14. f3 {[%clk 0:00:00]}  b5 {[%clk 0:00:00]} 15. e4 {[%clk 0:00:00]}  dxe4 {[%clk 0:00:00]} 16. fxe4 {[%clk 0:00:00]}  Ng4 {[%clk 0:00:00]} 17. Bxe7 {[%clk 0:00:00]}  Qxe7 {[%clk 0:00:00]} 18. d5 {[%clk 0:00:00]}  Qh4 {[%clk 0:00:00]} 19. h3 {[%clk 0:00:00]}  Ne3 {[%clk 0:00:00]} 20. Qc1 {[%clk 0:00:00]}  Nxf1 {[%clk 0:00:00]} 21. dxe6 {[%clk 0:00:00]}  Ng3 {[%clk 0:00:00]} 22. exf7+ {[%clk 0:00:00]}  Kxf7 {[%clk 0:00:00]} 23. e5 {[%clk 0:00:00]}  Nxe2+ {[%clk 0:00:00]} 24. Nxe2 {[%clk 0:00:00]}  Bd7 {[%clk 0:00:00]} 25. Nf4 {[%clk 0:00:00]}  Kg8 {[%clk 0:00:00]} 26. Bb1 {[%clk 0:00:00]}  Rf8 {[%clk 0:00:00]} 27. Rxd7 {[%clk 0:00:00]}  Qxf4 {[%clk 0:00:00]} 28. Qc2 {[%clk 0:00:00]}  Qf1+ {[%clk 0:00:00]} 29. Kh2 {[%clk 0:00:00]}  Qf4+ {[%clk 0:00:00]} 30. Kg1 {[%clk 0:00:00]}  Qe3+ {[%clk 0:00:00]} 31. Kh2 {[%clk 0:00:00]}  Qxe5+ {[%clk 0:00:00]} 32. g3 {[%clk 0:00:00]}  Rf2+ {[%clk 0:00:00]} 33. Qxf2 {[%clk 0:00:00]}  Qg5 {[%clk 0:00:00]} 34. Qc2 {[%clk 0:00:00]}  Kf8 {[%clk 0:00:00]} 35. Qf2+ {[%clk 0:00:00]}  Kg8 {[%clk 0:00:00]} 36. Qf7+ {[%clk 0:00:00]}  Kh8 {[%clk 0:00:00]} 37. Qf2 {[%clk 0:00:00]}  Kg8 {[%clk 0:00:00]} 1/2-1/2


[Site "https://www.chess.com"]

[Event "Titled Tuesday Blitz August 16 Late 2022"]
[White "Hoffmann, Asa"]
[Black "Mirimanian, Hayk"]
[WhiteFideId "2001470"]
[BlackFideId "4700180"]
[WhiteElo "2117"]
[BlackElo "2280"]
[Result "1-0"]
[Round "05"]
[TimeControl "180+1"]
[Date "2022.08.18"]
[WhiteClock "0:00:00"]
[BlackClock "0:00:00"]

1. d4 {[%clk 0:00:00]}  d5 {[%clk 0:00:00]} 2. Bg5 {[%clk 0:00:00]}  Nf6 {[%clk 0:00:00]} 3. Nd2 {[%clk 0:00:00]}  c6 {[%clk 0:00:00]} 4. e3 {[%clk 0:00:00]}  g6 {[%clk 0:00:00]} 5. Bd3 {[%clk 0:00:00]}  Bg7 {[%clk 0:00:00]} 6. f4 {[%clk 0:00:00]}  O-O {[%clk 0:00:00]} 7. Ngf3 {[%clk 0:00:00]}  Bf5 {[%clk 0:00:00]} 8. Bxf5 {[%clk 0:00:00]}  gxf5 {[%clk 0:00:00]} 9. O-O {[%clk 0:00:00]}  Nbd7 {[%clk 0:00:00]} 10. Ne5 {[%clk 0:00:00]}  Qb6 {[%clk 0:00:00]} 11. b3 {[%clk 0:00:00]}  e6 {[%clk 0:00:00]} 12. Qe1 {[%clk 0:00:00]}  Qb4 {[%clk 0:00:00]} 13. Rd1 {[%clk 0:00:00]}  h6 {[%clk 0:00:00]} 14. Bh4 {[%clk 0:00:00]}  c5 {[%clk 0:00:00]} 15. Ndf3 {[%clk 0:00:00]}  Qxe1 {[%clk 0:00:00]} 16. Rfxe1 {[%clk 0:00:00]}  Rac8 {[%clk 0:00:00]} 17. c3 {[%clk 0:00:00]}  b5 {[%clk 0:00:00]} 18. h3 {[%clk 0:00:00]}  Rc7 {[%clk 0:00:00]} 19. Rc1 {[%clk 0:00:00]}  Rfc8 {[%clk 0:00:00]} 20. Nxd7 {[%clk 0:00:00]}  Nxd7 {[%clk 0:00:00]} 21. Rcd1 {[%clk 0:00:00]}  Nf6 {[%clk 0:00:00]} 22. Bxf6 {[%clk 0:00:00]}  Bxf6 {[%clk 0:00:00]} 23. Ne5 {[%clk 0:00:00]}  Bxe5 {[%clk 0:00:00]} 24. dxe5 {[%clk 0:00:00]}  h5 {[%clk 0:00:00]} 25. Kf2 {[%clk 0:00:00]}  Kf8 {[%clk 0:00:00]} 26. g4 {[%clk 0:00:00]}  hxg4 {[%clk 0:00:00]} 27. hxg4 {[%clk 0:00:00]}  fxg4 {[%clk 0:00:00]} 28. Rg1 {[%clk 0:00:00]}  Ke7 {[%clk 0:00:00]} 29. Rxg4 {[%clk 0:00:00]}  b4 {[%clk 0:00:00]} 30. c4 {[%clk 0:00:00]}  dxc4 {[%clk 0:00:00]} 31. bxc4 {[%clk 0:00:00]}  Rh8 {[%clk 0:00:00]} 32. e4 {[%clk 0:00:00]}  Rh2+ {[%clk 0:00:00]} 33. Rg2 {[%clk 0:00:00]}  Rh4 {[%clk 0:00:00]} 34. Kg3 {[%clk 0:00:00]}  Rh7 {[%clk 0:00:00]} 35. f5 {[%clk 0:00:00]}  Rd7 {[%clk 0:00:00]} 36. f6+ {[%clk 0:00:00]}  Kd8 {[%clk 0:00:00]} 37. Rxd7+ {[%clk 0:00:00]}  Kxd7 {[%clk 0:00:00]} 38. Rd2+ {[%clk 0:00:00]}  Kc7 {[%clk 0:00:00]} 39. Rd6 {[%clk 0:00:00]}  Rh1 {[%clk 0:00:00]} 40. Kf2 {[%clk 0:00:00]}  Rc1 {[%clk 0:00:00]} 41. Ra6 {[%clk 0:00:00]}  Kb7 {[%clk 0:00:00]} 42. Rxe6 {[%clk 0:00:00]}  a5 {[%clk 0:00:00]} 43. Re7+ {[%clk 0:00:00]}  Kb6 {[%clk 0:00:00]} 44. e6 {[%clk 0:00:00]}  Rc2+ {[%clk 0:00:00]} 45. Kf1 {[%clk 0:00:00]}  a4 {[%clk 0:00:00]} 46. exf7 {[%clk 0:00:00]}  b3 {[%clk 0:00:00]} 47. axb3 {[%clk 0:00:00]}  axb3 {[%clk 0:00:00]} 48. f8=Q {[%clk 0:00:00]}  b2 {[%clk 0:00:00]} 49. Qb8+ {[%clk 0:00:00]}  Ka5 {[%clk 0:00:00]} 50. Ra7# {[%clk 0:00:00]} 1-0


[Site "https://www.chess.com"]